bitfinex-derivatives/quotes_ETHF0:USTF0_20250422
["timestamp","ask_amount","ask_price","bid_price","bid_amount"]
[1745348727721,57.88372233,1702.7,1702.6,2.38e-06]
[1745348731024,52.88372233,1702.7,1702.6,2.38e-06]
[1745348731230,57.88372233,1702.7,1702.6,2.38e-06]
[1745348732023,52.88372233,1702.7,1702.6,2.38e-06]
[1745348735123,1.17394,1702.6,1702.5,1.56286476]
[1745348735330,1.17415,1702.3,1702.2,1.7104]
[1745348735530,5.14215,1702.3,1702.2,1.7104]
[1745348735729,45.94215,1702.3,1702.2,1.7104]
[1745348735932,47.58575,1702.3,1702.2,1.7104]
[1745348736132,47.58575,1702.3,1702.2,8.0324]
[1745348736538,47.58575,1702.3,1702.2,6.322]
[1745348737942,45.94215,1702.3,1702.2,7.49622]
[1745348738239,45.94215,1702.3,1702.2,9.21042]
[1745348739335,45.94215,1702.3,1702.2,8.0362]
[1745348739638,47.66965,1702.3,1702.2,8.0362]
[1745348740938,47.66965,1702.3,1702.2,9.21042]
[1745348741147,45.94215,1702.3,1702.2,9.21042]
[1745348743244,45.94215,1702.3,1702.2,8.0362]
[1745348743446,6.88475,1702.3,1702.2,6.322]
[1745348743745,7.73855,1702.3,1702.2,6.322]
[1745348743946,48.53855,1702.3,1702.2,6.322]
[1745348744148,1.17422,1702.2,1702.1,0.8486]
[1745348744348,6.04572,1702.2,1702.1,0.8486]
[1745348744845,6.04572,1702.2,1701.7,6.1442]
[1745348744846,2.93587,1702.1,1701.6,1.17457]
[1745348745149,1.17463,1701.6,1701.5,10.7045]
[1745348746447,5.15242238,1701.7,1701.6,1.17463]
[1745348746649,5.15242238,1701.7,1701.6,2.87083]
[1745348748356,5.15242238,1701.7,1701.6,1.6962]
[1745348748560,5.15242238,1701.7,1701.6,2.87083]
[1745348748859,1.18342238,1701.7,1701.6,1.6962]
[1745348749160,5.15342238,1701.7,1701.6,1.6962]
[1745348749657,5.15342238,1701.7,1701.6,2.87083]
[1745348749958,5.15342238,1701.7,1701.6,1.6962]
[1745348750161,5.15342238,1701.7,1701.6,2.87083]
[1745348751660,5.15342238,1701.7,1701.6,1.6962]
[1745348751859,1.17463,1701.6,1701.5,8.0245]
[1745348752059,4.38243,1701.6,1701.5,6.322]
[1745348752260,1.1747,1701.5,1701.4,2.92917]
[1745348752765,1.1747,1701.5,1701.4,1.7544]
[1745348753263,1.1747,1701.5,1701.4,8.0764]
[1745348754255,1.1747,1701.5,1701.4,1.7544]
[1745348755168,1.1747,1701.5,1701.4,8.0764]
[1745348756172,1.1747,1701.5,1701.4,9.25117]
[1745348756370,1.17467,1701.6,1701.5,1.1747]
[1745348756667,0.00881238,1701.7,1701.6,1.17463]
[1745348757068,0.00881238,1701.7,1701.6,6.17463]
[1745348758172,0.00881238,1701.7,1701.6,1.17463]
[1745348758363,1.18337238,1701.7,1701.6,1.17463]
[1745348760372,0.00881238,1701.7,1701.6,6.17463]
[1745348760767,3.969,1702.0,1701.9,1.17442]
[1745348760966,3.2078,1702.4,1702.2,1.17419]
[1745348761273,5.14308,1702.4,1702.3,0.8924]
[1745348761465,6.86118,1702.4,1702.3,0.8924]
[1745348762263,5.14308,1702.4,1702.3,2.06655]
[1745348762464,3.969,1702.4,1702.3,2.06655]
[1745348762664,41.98282238,1702.5,1702.4,1.17408]
[1745348762961,41.98282238,1702.5,1702.4,2.00768]
[1745348763161,41.98282238,1702.5,1702.4,8.32968]
[1745348767672,0.00881238,1702.5,1702.4,8.32968]
[1745348767879,0.8367,1702.9,1702.8,1.17373]
[1745348767880,1.17377,1702.9,1702.8,1.17373]
[1745348768177,41.97377,1702.9,1702.8,1.17373]
[1745348768766,40.8,1702.9,1702.6,3.2078]
[1745348768974,1.17401,1702.6,1702.5,1.715]
[1745348769274,1.17401,1702.6,1702.5,6.322]
[1745348769478,2.86691,1702.6,1702.5,6.322]
[1745348770180,1.17401,1702.5,1702.4,6.09733]
[1745348770372,1.17401,1702.5,1702.4,6.09611785]
[1745348770884,1.17401,1702.5,1702.4,1.71428785]
[1745348771172,1.17401,1702.5,1702.2,1.18303238]
[1745348771173,1.17415,1702.3,1702.2,1.18303238]
[1745348771479,1.17415,1702.3,1702.2,0.00881238]
[1745348771777,41.97415,1702.3,1702.2,0.00881238]
[1745348771973,43.75495,1702.3,1702.2,0.00881238]
[1745348777069,1.17435,1702.1,1702.0,1.17433]
[1745348777375,1.17427,1702.2,1702.1,1.17429]
[1745348777575,41.9742,1702.3,1702.2,1.17422]
[1745348778075,1.17425,1702.2,1702.1,1.18304238]
[1745348778276,41.97421,1702.3,1702.2,1.17422]
[1745348778477,41.97415,1702.3,1702.2,2.88072]
[1745348778681,41.97415,1702.3,1702.2,1.7065]
[1745348778885,43.64085,1702.3,1702.2,1.7065]
[1745348779067,43.64085,1702.3,1702.2,8.0285]
[1745348779481,40.8,1702.3,1702.2,9.20272]
[1745348779785,3.968,1702.4,1702.3,1.17415]
[1745348779984,3.968,1702.4,1702.3,3.70765]
[1745348780277,3.968,1702.4,1702.3,10.02965]
[1745348780278,44.768,1702.4,1702.3,10.02965]
[1745348781575,45.94208,1702.4,1702.3,10.02965]
[1745348783975,49.14988,1702.4,1702.3,6.31318762]
[1745348784182,1.17422,1702.2,1702.1,0.00881238]
[1745348784776,6.05292,1702.2,1702.1,0.00881238]
[1745348789379,16.96292,1702.2,1702.1,0.00881238]
[1745348789584,17.0537097,1702.2,1702.1,0.00881238]
[1745348791577,12.0537097,1702.2,1702.1,0.00881238]
[1745348792484,6.05292,1702.2,1702.1,1.18310238]
[1745348793473,6.05292,1702.2,1702.1,1.76541238]
[1745348793886,6.05292,1702.2,1702.1,2.93970238]
[1745348794080,1.17422,1702.2,1702.1,2.93970238]
[1745348795792,1.17422,1702.2,1702.1,1.76541238]
[1745348795982,2.89262,1702.2,1702.1,1.76541238]
[1745348796583,1.17422,1702.2,1702.1,1.76541238]
[1745348796984,1.17422,1702.2,1702.1,2.93970238]
[1745348797578,1.17422,1702.2,1702.1,1.76541238]
[1745348797983,2.90052,1702.2,1702.1,1.76541238]
[1745348799687,2.90052,1702.2,1702.1,0.00881238]
[1745348799893,6.10832,1702.2,1702.1,0.00881238]
[1745348801683,11.19910821,1702.2,1702.1,0.00881238]
[1745348801993,17.10910821,1702.2,1702.1,0.00881238]
[1745348802481,17.10910821,1702.2,1702.1,6.19e-06]
[1745348803282,1.17477,1701.4,1701.3,1.17481]
[1745348803483,1.17477,1701.4,1701.3,0.8335]
[1745348804289,1.17477,1701.4,1701.3,7.1555]
[1745348804585,4.38257,1701.4,1701.3,6.322]
[1745348804986,45.18257,1701.4,1701.3,6.322]
[1745348805186,1.17491,1701.2,1701.1,1.7459]
[1745348805378,5.14291,1701.2,1701.1,1.7459]
[1745348806187,1.17498,1701.1,1701.0,6.5141]
[1745348806396,4.38278,1701.1,1701.0,6.5141]
[1745348806592,7.01258,1701.1,1701.0,6.5141]
[1745348807085,47.81258,1701.1,1701.0,6.5141]
[1745348807291,1.17532,1700.6,1700.5,0.8144]
[1745348807592,1.17532,1700.6,1700.5,3.67799]
[1745348807793,1.17532,1700.6,1700.5,2.5026]
[1745348808291,1.17532,1700.6,1700.5,9.99999]
[1745348808494,1.17532,1700.6,1700.5,8.8246]
[1745348808689,2.83062,1700.6,1700.5,9.99999]
[1745348809088,2.83062,1700.6,1700.5,6.322]
[1745348809290,6.03842,1700.6,1700.5,6.322]
[1745348809897,46.83842,1700.6,1700.5,6.322]
[1745348810195,1.17553,1700.3,1700.2,10.34170483]
[1745348810897,1.17553,1700.3,1700.2,2.5286]
[1745348811090,1.17553,1700.3,1700.2,8.8506]
[1745348811290,1.17553,1700.3,1700.2,10.0262]
[1745348812990,5.63211238,1700.4,1700.3,1.17553]
[1745348812991,3.97681238,1700.4,1700.3,1.17553]
[1745348813191,3.97681238,1700.4,1700.3,4.38333]
[1745348813386,3.97681238,1700.4,1700.3,9.38333]
[1745348814192,3.97681238,1700.4,1700.3,15.70533]
[1745348814595,0.00881238,1700.4,1700.3,15.70533]
[1745348815400,0.00881238,1700.4,1700.3,17.41523]
[1745348815899,1.17509,1701.0,1700.9,1.17504]
[1745348816599,1.17509,1701.0,1700.9,1.7099]
[1745348816788,41.97509,1701.0,1700.9,1.7099]
[1745348817195,43.72299,1701.0,1700.9,8.0319]
[1745348817500,43.72299,1701.0,1700.9,6.322]
[1745348817888,46.93079,1701.0,1700.9,6.322]
[1745348818088,48.65279,1701.0,1700.9,6.322]
[1745348818287,1.17511,1700.9,1700.8,0.00881238]
[1745348818497,1.17511,1700.9,1700.8,1.79751238]
[1745348818697,2.91171,1700.9,1700.8,1.79751238]
[1745348819093,2.91171,1700.9,1700.8,0.00881238]
[1745348819300,1.17511,1700.9,1700.8,6.33081238]
[1745348819696,1.17511,1700.9,1700.8,8.11951238]
[1745348820503,1.1751,1701.0,1700.9,1.17511]
[1745348820692,1.1751,1701.0,1700.9,2.89011]
[1745348820896,41.9751,1701.0,1700.9,2.89011]
[1745348821097,40.8,1701.0,1700.9,9.21211]
[1745348822191,5.15280238,1701.1,1701.0,1.17504]
[1745348822400,5.15280238,1701.1,1701.0,4.63444]
[1745348822605,45.95280238,1701.1,1701.0,4.63444]
[1745348823106,45.95280238,1701.1,1701.0,10.95644]
[1745348825405,44.77781238,1701.1,1701.0,10.95644]
[1745348825803,45.95279238,1701.1,1701.0,8.037]
[1745348826001,47.56629238,1701.1,1701.0,8.037]
[1745348826396,47.56629238,1701.1,1701.0,6.322]
[1745348827008,47.56629238,1701.1,1701.0,7.9704]
[1745348827207,45.95279238,1701.1,1701.0,9.14544]
[1745348827810,45.95279238,1701.1,1701.0,7.9704]
[1745348828102,45.95279238,1701.1,1701.0,9.14544]
[1745348828307,45.95279238,1701.1,1701.0,7.9704]
[1745348828510,45.95279238,1701.1,1701.0,9.14544]
[1745348829312,0.00881238,1701.1,1701.0,14.14544]
[1745348829518,0.00881238,1701.1,1701.0,14.98334]
[1745348829705,1.18379238,1701.1,1701.0,14.98334]
[1745348830012,1.18379238,1701.1,1701.0,9.98334]
[1745348830211,0.00881238,1701.1,1701.0,9.98334]
[1745348830415,1.18379238,1701.1,1701.0,9.98334]
[1745348833913,1.17511,1700.9,1700.8,0.00881238]
[1745348834121,5.14411,1700.9,1700.8,0.00881238]
[1745348834317,11.90685,1700.9,1700.4,0.8886]
[1745348834517,1.17539,1700.5,1700.4,3.70276]
[1745348834813,3.969,1700.6,1700.5,1.17539]
[1745348835017,40.8,1700.8,1700.7,1.17525]
[1745348835210,0.00881238,1701.1,1700.8,1.17518]
[1745348835411,0.00881238,1701.1,1701.0,1.17504]
[1745348835619,40.80881238,1701.1,1701.0,1.17504]
[1745348835818,41.98379238,1701.1,1701.0,2.82334]
[1745348836317,41.98379238,1701.1,1701.0,7.9703]
[1745348836517,41.98379238,1701.1,1701.0,6.322]
[1745348836719,45.28149238,1701.1,1701.0,6.322]
[1745348837517,45.28149238,1701.1,1701.0,7.49704]
[1745348837518,41.98379238,1701.1,1701.0,7.49704]
[1745348837718,43.60439238,1701.1,1701.0,9.14534]
[1745348839414,43.60439238,1701.1,1701.0,6.322]
[1745348839617,44.45759238,1701.1,1701.0,6.322]
[1745348840721,44.45759238,1701.1,1701.0,7.49704]
[1745348841307,44.45759238,1701.1,1701.0,9.15504]
[1745348841514,41.66201238,1701.1,1701.0,9.15504]
[1745348841712,41.98379238,1701.1,1701.0,10.80364]
[1745348842219,41.98379238,1701.1,1701.0,7.98]
[1745348842420,43.62209238,1701.1,1701.0,9.15504]
[1745348844122,42.44711238,1701.1,1701.0,9.15504]
[1745348844422,0.00881238,1701.1,1701.0,9.15504]
[1745348844625,0.00881238,1701.1,1701.0,14.98604]
[1745348845327,1.17474,1701.5,1701.4,1.17477]
[1745348845619,1.17474,1701.5,1701.0,19.68612]
[1745348845620,7.66038,1701.6,1701.5,1.1747]
[1745348845829,1.17476,1701.5,1701.4,1.17473]
[1745348846723,1.17476,1701.5,1701.4,2.91293]
[1745348847123,1.17476,1701.5,1701.4,9.23493]
[1745348847520,45.63461238,1701.6,1701.5,1.1747]
[1745348847819,0.00881238,1701.6,1701.5,3.7723]
[1745348848220,8.35028,1701.9,1701.8,1.17449]
[1745348848426,49.15028,1701.9,1701.8,1.17449]
[1745348848817,1.17449,1701.8,1701.7,2.01296]
[1745348849116,1.17463,1701.6,1701.5,2.03407]
[1745348849323,1.17463,1701.6,1701.5,3.80667]
[1745348850020,1.17463,1701.6,1701.5,2.632]
[1745348850220,0.8147,1701.6,1701.5,10.1287]
[1745348850423,2.9288,1701.7,1701.6,1.17463]
[1745348850621,2.9288,1701.7,1701.6,1.7726]
[1745348850817,2.9288,1701.7,1701.6,2.94723]
[1745348851922,0.8147,1701.8,1701.7,1.17456]
[1745348851923,1.98921,1701.8,1701.7,1.17456]
[1745348852121,1.98921,1701.8,1701.7,9.20416]
[1745348852423,50.80928238,1701.9,1701.8,1.17449]
[1745348852624,50.80928238,1701.9,1701.8,2.88209]
[1745348852820,3.97681238,1701.9,1701.8,2.88209]
[1745348853224,3.97681238,1701.9,1701.8,9.20409]
[1745348853423,44.77681238,1701.9,1701.8,9.20409]
[1745348854725,40.80881238,1701.9,1701.8,9.20409]
[1745348855530,3.967,1702.2,1701.8,17.41189]
[1745348855830,5.14128,1702.2,1702.1,1.17429]
[1745348856130,1.17432,1702.1,1702.0,1.1743]
[1745348856328,1.17435,1702.0,1701.9,4.47187]
[1745348856534,2.91634,1702.1,1702.0,1.17435]
[1745348856830,2.92515238,1702.1,1702.0,2.79115]
[1745348857128,2.92515238,1702.1,1702.0,9.11315]
[1745348860830,2.92515238,1702.1,1702.0,7.49635]
[1745348861028,7.92515238,1702.1,1702.0,4.04237525]
[1745348861334,2.92517238,1702.1,1701.8,2.93612]
[1745348861625,2.92517238,1702.1,1702.0,1.17435]
[1745348862034,1.17435,1702.0,1701.9,2.91586]
[1745348862332,2.83855,1702.0,1701.9,2.91586]
[1745348862722,41.98315238,1702.1,1702.0,1.17435]
[1745348862932,41.98315238,1702.1,1702.0,2.91585]
[1745348863330,41.98315238,1702.1,1702.0,9.23785]
[1745348863724,43.75415238,1702.1,1702.0,9.23785]
[1745348864520,41.98315238,1702.1,1702.0,9.23785]
[1745348864734,41.98315238,1702.1,1702.0,10.04855]
[1745348865339,43.75415238,1702.1,1702.0,10.04855]
[1745348867140,48.75415238,1702.1,1702.0,6.322]
[1745348867436,49.61295238,1702.1,1702.0,6.322]
[1745348867830,44.61295238,1702.1,1702.0,6.322]
[1745348872441,44.61295238,1702.1,1702.0,7.49635]
[1745348873337,44.61295238,1702.1,1702.0,9.24425]
[1745348873338,0.00881238,1702.1,1702.0,9.24425]
[1745348873539,7.08414,1702.4,1702.3,1.17415]
[1745348873841,41.97414,1702.4,1702.3,1.17415]
[1745348874038,41.97414,1702.4,1702.3,7.49615]
[1745348874240,41.97414,1702.4,1702.3,9.24405]
[1745348874436,40.8,1702.4,1702.3,9.24405]
[1745348874629,5.96337,1702.6,1702.5,1.17401]
[1745348874834,0.00881238,1702.5,1702.3,7.1895]
[1745348875040,40.8,1702.4,1702.3,10.11155]
[1745348875935,42.492,1702.4,1702.3,10.11155]
[1745348876140,40.8,1702.4,1702.3,10.11155]
[1745348876340,0.00881238,1702.5,1702.4,1.17408]
[1745348876543,0.00881238,1702.5,1702.4,2.81898]
[1745348877039,0.00881238,1702.5,1702.4,3.65758]
[1745348877244,0.00881238,1702.5,1702.4,9.97958]
[1745348878143,1.18282238,1702.5,1702.4,9.97958]
[1745348878344,2.92172238,1702.5,1702.4,9.97958]
[1745348878642,2.92172238,1702.5,1702.4,9.14098]
[1745348879047,2.92172238,1702.5,1702.4,12.34878]
[1745348879543,2.92172238,1702.5,1702.4,9.5298]
[1745348879733,2.92172238,1702.5,1702.4,6.322]
[1745348881046,2.92172238,1702.5,1702.4,7.49608]
[1745348881238,2.92172238,1702.5,1702.4,1.17408]
[1745348882040,1.17408,1702.4,1702.3,2.95538]
[1745348882238,3.70568,1702.4,1702.3,2.95538]
[1745348882438,4.51938,1702.4,1702.3,2.95538]
[1745348882640,45.31938,1702.4,1702.3,2.95538]
[1745348883151,45.31938,1702.4,1702.3,9.27738]
[1745348889144,45.31938,1702.4,1702.3,9.27745]
[1745348890245,45.31938,1702.4,1702.3,6.322]
[1745348890452,53.52718,1702.4,1702.3,6.31318762]
[1745348890844,53.52718,1702.4,1702.3,5.97703944]
[1745348891250,1.17415,1702.3,1702.2,0.00881238]
[1745348891450,6.91855,1702.3,1702.2,0.00881238]
[1745348892940,47.71855,1702.3,1702.2,0.00881238]
[1745348895751,58.62855,1702.3,1702.2,0.00881238]
[1745348895952,58.7193346,1702.3,1702.2,0.00881238]
[1745348896153,58.7193346,1702.3,1702.2,0.00182751]
[1745348896746,58.62855,1702.3,1702.2,0.00182751]
[1745348896946,58.71933639,1702.3,1702.2,0.00182751]
[1745348898247,53.71933639,1702.3,1702.2,0.00182751]
[1745348898646,0.31269671,1702.2,1702.1,4.38209]
[1745348898950,1.18286238,1702.5,1702.4,1.17408]
[1745348899147,1.18286238,1702.5,1702.4,7.49608]
[1745348899348,41.98286238,1702.5,1702.4,7.49608]
[1745348899548,40.80881238,1702.5,1702.4,7.49608]
[1745348900351,0.00881238,1702.5,1702.4,12.49608]
[1745348900747,1.18282238,1702.5,1702.4,12.49608]
[1745348900949,40.80881238,1702.5,1702.4,12.49608]
[1745348901257,41.98282238,1702.5,1702.4,12.49608]
[1745348901555,40.80881238,1702.5,1702.4,12.49608]
[1745348902458,1.17381,1702.8,1702.5,2.93488]
[1745348902656,1.17387,1702.8,1702.7,1.17386]
[1745348903157,41.97387,1702.8,1702.7,7.49586]
[1745348903853,40.8,1702.8,1702.7,7.49586]
[1745348904746,41.9738,1702.8,1702.7,7.49586]
[1745348905348,41.9738,1702.8,1702.7,6.322]
[1745348905550,41.9738,1702.8,1702.7,7.49587]
[1745348905757,40.8,1702.8,1702.7,7.49587]
[1745348906759,40.8,1702.8,1702.7,7.1813267]
[1745348907056,41.9738,1702.8,1702.7,7.1813267]
[1745348907761,40.8,1702.8,1702.7,7.1813267]
[1745348908257,41.9738,1702.8,1702.7,7.1813267]
[1745348909050,41.9738,1702.8,1702.7,8.8774267]
[1745348909252,40.8,1702.8,1702.7,8.8774267]
[1745348909755,3.964,1703.3,1702.9,1.17373]
[1745348909962,5.13751,1703.3,1703.1,1.17353]
[1745348910260,5.13751,1703.3,1703.2,2.86963]
[1745348910757,3.2078,1703.6,1703.2,1.6961]
[1745348910954,1.18220238,1703.4,1703.3,2.5685]
[1745348911155,1.18220238,1703.4,1703.3,2.04583]
[1745348911355,40.80881238,1703.4,1703.3,2.04583]
[1745348911552,41.98220238,1703.4,1703.3,0.8724]
[1745348911954,41.98220238,1703.4,1703.3,2.04586]
[1745348912262,1.17346,1703.3,1703.2,0.00881238]
[1745348912452,2.91776,1703.3,1703.2,0.00881238]
[1745348912654,1.7443,1703.3,1703.2,1.18232238]
[1745348913152,2.91776,1703.3,1703.2,0.00881238]
[1745348913553,2.91776,1703.3,1703.2,1.18234238]
[1745348913963,42.85605238,1703.4,1703.3,1.17346]
[1745348914264,41.98225238,1703.4,1703.3,1.17346]
[1745348914461,0.00881238,1703.4,1703.3,4.38126]
[1745348915063,0.00881238,1703.4,1703.3,4.06679194]
[1745348915249,7.72023,1703.7,1703.3,4.06679194]
[1745348915250,3.964,1703.7,1703.6,1.17325]
[1745348915462,1.99624,1703.8,1703.7,1.17318]
[1745348915657,1.17309,1703.9,1703.8,1.17308]
[1745348916258,1.17309,1703.9,1703.8,7.49508]
[1745348916460,2.83709,1703.9,1703.8,6.322]
[1745348916862,43.63709,1703.9,1703.8,6.322]
[1745348917256,1.17311,1703.8,1703.7,5.20523]
[1745348918166,41.9731,1703.9,1703.8,1.17311]
[1745348918660,0.00587494,1704.0,1703.7,10.3541]
[1745348918863,0.00587494,1704.0,1703.9,1.17304]
[1745348919261,0.00587494,1704.0,1703.9,10.70284]
[1745348920257,0.00587494,1704.0,1703.7,13.8161]
[1745348920461,1.17311,1703.8,1703.7,9.8541]
[1745348920962,2.8499,1703.9,1703.8,1.17311]
[1745348922068,0.00587494,1704.0,1703.9,1.17304]
[1745348922262,0.00587494,1704.0,1703.9,4.38084]
[1745348922462,1.17268,1704.5,1704.4,1.17268]
[1745348923060,41.97268,1704.5,1704.4,1.17268]
[1745348923365,1.1727,1704.4,1704.3,2.06072]
[1745348923564,1.1727,1704.4,1704.3,0.89681238]
[1745348923764,2.8495,1704.4,1704.3,0.89681238]
[1745348923967,2.8495,1704.4,1704.3,0.00881238]
[1745348924365,1.17295,1704.1,1704.0,1.17296]
[1745348924669,1.17296,1704.1,1704.0,1.17295]
[1745348925263,1.17298,1704.0,1703.9,6.07788]
[1745348925566,1.17298,1704.0,1703.9,6.08669238]
[1745348926371,1.17298,1704.0,1703.9,0.00881238]
[1745348927166,2.82518,1704.0,1703.9,0.00881238]
[1745348927368,2.82518,1704.0,1703.9,1.18185238]
[1745348927669,2.02497238,1704.2,1704.1,1.17291]
[1745348928175,0.00881238,1704.2,1704.1,1.17291]
[1745348928370,0.00881238,1704.2,1704.1,4.38071]
[1745348928571,0.00881238,1704.2,1704.1,1.17291]
[1745348928771,1.18165238,1704.2,1704.1,1.17291]
[1745348929166,1.18165238,1704.2,1704.1,2.95611]
[1745348929471,2.83385238,1704.2,1704.1,2.95611]
[1745348930273,1.17297,1704.1,1704.0,1.17291]
[1745348930483,1.17297,1704.1,1704.0,3.61921]
[1745348930983,1.17297,1704.1,1704.0,2.4774609]
[1745348931180,1.17298,1704.0,1703.9,5.21710238]
[1745348931384,2.94638,1704.0,1703.9,1.18180238]
[1745348932071,1.7734,1704.0,1703.9,1.18180238]
[1745348932272,1.98236,1704.1,1704.0,1.17298]
[1745348932477,1.98236,1704.1,1704.0,2.79188]
[1745348934871,0.00881238,1704.2,1704.1,1.17291]
[1745348935077,0.00881238,1704.2,1704.1,7.04441]
[1745348935378,0.00881238,1704.2,1704.1,1.17291]
[1745348935379,1.18165238,1704.2,1704.1,1.17291]
[1745348935576,1.17291,1704.1,1704.0,7.49492]
[1745348935877,1.7691,1704.1,1704.0,9.27632]
[1745348936280,1.17298,1704.0,1703.9,4.38960238]
[1745348936477,2.84398,1704.0,1703.9,4.38960238]
[1745348937884,1.671,1704.0,1703.9,4.38960238]
[1745348938188,2.84398,1704.0,1703.9,4.38960238]
[1745348938775,2.84398,1704.0,1703.9,3.21661238]
[1745348938982,2.84398,1704.0,1703.9,2.90228127]
[1745348939187,2.84398,1704.0,1703.9,1.17304]
[1745348939381,2.84398,1704.0,1703.9,2.93494]
[1745348939581,2.84398,1704.0,1703.9,1.7619]
[1745348939986,1.17311,1703.8,1703.7,6.11074]
[1745348940187,1.17311,1703.8,1703.7,14.19464]
[1745348940690,2.92561,1703.9,1703.8,1.17311]
[1745348940987,2.84401,1704.0,1703.9,1.17304]
[1745348941689,2.84401,1704.0,1703.9,2.93494]
[1745348942386,1.17294,1704.1,1704.0,1.17298]
[1745348942582,2.93060238,1704.2,1704.1,1.17291]
[1745348942789,1.18170238,1704.2,1704.1,2.93531]
[1745348942976,1.18170238,1704.2,1704.1,3.74361]
[1745348947391,1.18170238,1704.2,1704.1,3.42926198]
[1745348949286,1.18165238,1704.2,1704.1,3.42926198]
[1745348949590,0.00881238,1704.2,1704.1,3.42926198]
[1745348949983,1.18165238,1704.2,1704.1,3.42926198]
[1745348950189,1.18165238,1704.2,1704.1,2.5707]
[1745348950793,2.04045238,1704.2,1704.1,2.5707]
[1745348951294,2.04045238,1704.2,1704.1,3.74361]
[1745348952888,2.04045238,1704.2,1704.1,2.5707]
[1745348953896,2.04045238,1704.2,1704.1,3.74361]
[1745348954697,1.17291,1704.1,1704.0,4.0172]
[1745348954994,1.17291,1704.1,1703.8,8.75478]
[1745348954995,1.17298,1704.0,1703.9,1.6645]
[1745348955396,2.84288,1704.0,1703.9,1.6645]
[1745348955998,2.84288,1704.0,1703.8,9.8753]
[1745348955999,1.17304,1703.9,1703.8,1.52080359]
[1745348956294,1.17318,1703.7,1703.6,0.00881238]
[1745348956698,6.17318,1703.7,1703.6,0.00881238]
[1745348956895,7.84308,1703.7,1703.6,0.00881238]
[1745348957090,14.16508,1703.7,1703.6,0.00881238]
[1745348957291,9.16508,1703.7,1703.6,0.00881238]
[1745348957694,49.96508,1703.7,1703.6,0.00881238]
[1745348959100,54.96508,1703.7,1703.6,0.00881238]
[1745348959298,48.64308,1703.7,1703.6,0.00881238]
[1745348960206,54.96508,1703.7,1703.6,0.00881238]
[1745348960505,60.87508,1703.7,1703.6,0.00881238]
[1745348961900,60.87508,1703.7,1703.6,2.38e-06]
[1745348966503,60.96577997,1703.7,1703.6,2.38e-06]
[1745348967414,1.17366,1703.0,1702.9,0.8488]
[1745348967808,1.17387,1702.7,1702.6,2.86154]
[1745348968207,1.17387,1702.7,1702.6,1.6876]
[1745348970618,1.17394,1702.6,1702.5,6.33081238]
[1745348971210,2.85114,1702.6,1702.5,6.33081238]
[1745348971622,1.17394,1702.6,1702.5,7.50482238]
[1745348971916,1.17394,1702.6,1702.5,6.33081238]
[1745348972313,2.85114,1702.6,1702.5,6.33081238]
[1745348973219,43.65114,1702.6,1702.5,6.33081238]
[1745348973921,41.97394,1702.6,1702.5,6.33081238]
[1745348976524,41.97394,1702.6,1702.5,7.50470238]
[1745348976731,41.97394,1702.6,1702.5,6.33081238]
[1745348977023,41.97394,1702.6,1702.5,7.50470238]
[1745348977424,40.8,1702.6,1702.5,7.50470238]
[1745348977632,40.8,1702.6,1702.5,10.71250238]
[1745348978324,1.17378,1702.7,1702.6,1.17382]
[1745348978824,41.97378,1702.7,1702.6,1.17382]
[1745348979218,41.97378,1702.7,1702.6,2.85942]
[1745348980523,40.8,1702.7,1702.6,2.85942]
[1745348981818,41.97375,1702.7,1702.6,2.85942]
[1745348982021,0.00881238,1702.8,1702.7,1.17375]
[1745348982219,0.00881238,1702.8,1702.7,3.65185]
[1745348982626,2.9335,1703.3,1702.7,3.65185]
[1745348982627,3.2078,1703.4,1703.1,1.17348]
[1745348982826,4.3811,1703.4,1703.3,1.17334]
[1745348983018,1.17334,1703.3,1703.2,4.53706]
[1745348983332,1.17334,1703.3,1703.2,2.90466]
[1745348985127,1.17334,1703.3,1703.2,2.90471]
[1745348986028,4.38994238,1703.4,1703.3,1.17334]
[1745348986232,1.18214238,1703.4,1703.3,1.17334]
[1745348986427,1.18214238,1703.4,1703.3,4.38114]
[1745348986428,0.00881238,1703.4,1703.3,4.38114]
[1745348987124,0.00881238,1703.4,1703.3,10.70314]
[1745348987525,1.18208238,1703.4,1703.3,10.70314]
[1745348988126,1.18208238,1703.4,1703.3,4.38114]
[1745348988727,1.18208238,1703.4,1703.3,1.17334]
[1745348990025,0.00881238,1703.4,1703.3,1.17334]
[1745348990231,1.18208238,1703.4,1703.3,1.17334]
[1745348990430,1.17334,1703.3,1703.2,2.90466]
[1745348991128,1.18214238,1703.4,1703.3,1.17334]
[1745348993337,0.00881238,1703.4,1703.3,1.17334]
[1745348994039,1.18208238,1703.4,1703.3,1.17334]
[1745348996333,0.00881238,1703.4,1703.3,1.17334]
[1745348997133,0.00881238,1703.4,1703.3,7.49534]
[1745348999244,0.00881238,1703.4,1703.3,9.13834]
[1745349002049,1.18208238,1703.4,1703.3,9.13834]
[1745349003740,0.00881238,1703.4,1703.3,9.13834]
[1745349006240,4.8124,1703.6,1703.5,1.1732]
[1745349006444,3.963,1703.6,1703.5,1.1732]
[1745349006636,3.963,1703.6,1703.5,4.5465]
[1745349007232,5.13613,1703.6,1703.5,10.0585]
[1745349007439,6.78943,1703.6,1703.5,7.4952]
[1745349007833,3.963,1703.6,1703.5,7.4952]
[1745349008039,3.963,1703.6,1703.5,10.8685]
[1745349008236,5.13413,1703.6,1703.5,6.322]
[1745349008439,11.78743,1703.6,1703.5,6.30437524]
[1745349008641,6.78743,1703.6,1703.5,6.30437524]
[1745349009649,13.10949,1703.6,1703.5,1.1732]
[1745349009846,13.10949,1703.6,1703.5,2.9464]
[1745349010247,5.6143,1703.6,1703.5,2.9464]
[1745349010547,3.961,1703.6,1703.5,3.8167]
[1745349010742,0.88301238,1703.7,1703.6,1.17313]
[1745349010949,0.88301238,1703.7,1703.6,2.94633]